Cogmind - Beta 12 @@@ ROGUE MODE // 2023.08.15 @ 16:22:09 Player: morimori Result: Destroyed by S-43 Plague with Heavy Machine Gun Performance ------------- Evolutions (9) 4500 Regions Visited (12) 2400 Robots Destroyed (107) 535 Value Destroyed (3181) 3181 Prototype IDs (15) 300 Alien Tech Used (0) 0 Bonus (37) 37 TOTAL SCORE: 10953 Bonus ------- High Alert Combat Kills 37 Cogmind --------- Core Integrity 0/1600 Matter 300/300 Energy 100/100 System Corruption 30% Temperature Cool (0) Movement Core (50) Location -1/Access Parts ------- > --- POWER (3) -------- (None) > --- PROPULSION (6) --- (None) > --- UTILITY (14) ----- (None) > --- WEAPON (2) ------- (None) > --- INVENTORY (5) ---- Medium Storage Unit Advanced Terrain Scan Processor Peak State ------------ > --- POWER ------------ Micro Nuclear Core Micro Nuclear Core Light Quantum Reactor > --- PROPULSION ------- Cooled Airjet Cooled Airjet Gravmag Array Gravmag Array > --- UTILITY ---------- Medium Storage Unit Enhanced Optical Array Improved Signal Interpreter Transmission Jammer Advanced Cloaking Device Improved Core Shielding Advanced Thermal Shield Advanced Shield Generator Hacking Suite Hacking Suite Hacking Suite Improved System Shield Improved System Shield > --- WEAPON ----------- Improved Plasma Cutter > --- INVENTORY -------- Quantum Reactor Light Quantum Reactor Cooled Airjet Cooled Airjet Gyrokinetic Inverter Gyrokinetic Inverter Combat Antigrav System Field Propulsion Array Advanced Terrain Scan Processor [Rating: 118] Favorites ----------- Power Micro Nuclear Core Engine Ion Engine Power Core Micro Nuclear Core Reactor Light Quantum Reactor Propulsion Aluminum Leg Treads Medium Treads Leg Aluminum Leg Wheel Wheel Hover Unit Cooled Airjet Flight Unit Field Propulsion Array Utility Hacking Suite Device Improved Heat Sink Storage Large Storage Unit Processor Improved Signal Interpreter Hackware Hacking Suite Protection Hardened Light Armor Plating Weapon Plasma Cutter Energy Gun Field Laser Energy Cannon Heavy Ion Cannon Ballistic Gun Light Assault Rifle Ballistic Cannon Flak Cannon Launcher Long-range Missile Launcher Special Weapon Plasma Cutter Build | -11 -10 -9 -8 -7 -6 -5 -5 -5 -4 -3 -2 -1 ------- Run | Jun Mat Mat Mat Fac Fac Fac Upp Upp Fac Res Res Acc Slots Evolved 18 | . . 2 2 2 2 2 . . 2 2 2 2 Power 2 | . . . . 1 . . . . . . . 1 Propulsion 4 | . . . 2 . . . . . . . 2 . Utility 12 | . . 2 . 1 2 2 . . 2 2 . 1 Weapon . | . . . . . . . . . . . . . Parts Attached 166 | 6 14 32 63 5 7 4 . . 6 3 7 19 Power 23 | 1 3 4 5 2 1 . . . . 1 1 5 Engine 10 | 1 3 4 1 1 . . . . . . . . Core 8 | . . . 4 1 1 . . . . 1 . 1 Reactor 5 | . . . . . . . . . . . 1 4 Propulsion 54 | 2 2 8 25 . 1 1 . . 2 . 3 10 Treads 2 | . . . . . . . . . . . 1 1 Leg 26 | . . 6 20 . . . . . . . . . Wheel 6 | 2 2 2 . . . . . . . . . . Hover 19 | . . . 5 . 1 1 . . 2 . 2 8 Flight 1 | . . . . . . . . . . . . 1 Utility 43 | 1 5 8 11 3 3 2 . . 3 2 3 2 Device 19 | . 2 3 4 2 1 1 . . 2 1 1 2 Storage 4 | 1 1 . 2 . . . . . . . . . Processor 5 | . 1 2 1 . . . . . 1 . . . Hackware 7 | . . . 1 1 2 1 . . . 1 1 . Protection 8 | . 1 3 3 . . . . . . . 1 . Artifact . | . . . . . . . . . . . . . Weapon 46 | 2 4 12 22 . 2 1 . . 1 . . 2 Energy Gun 7 | . 1 6 . . . . . . . . . . Energy Cannon 7 | . 2 . 5 . . . . . . . . . Ballistic Gun 13 | 2 1 5 5 . . . . . . . . . Ballistic Cannon 3 | . . . 3 . . . . . . . . . Launcher 4 | . . 1 . . 2 1 . . . . . . Special Weapon 12 | . . . 9 . . . . . 1 . . 2 Impact Weapon . | . . . . . . . . . . . . . Slashing Weapon . | . . . . . . . . . . . . . Piercing Weapon . | . . . . . . . . . . . . . Special Melee Weapon . | . . . . . . . . . . . . . Unidentified Prototypes 2 | . . . 2 . . . . . . . . . Parts Lost 60 | . 8 8 4 . 1 . . . 5 2 1 31 Power 12 | . 2 1 1 . . . . . . 1 . 7 Propulsion 18 | . 2 3 2 . . . . . . . . 11 Utility 21 | . 2 2 1 . . . . . 3 . 1 12 Weapon 9 | . 2 2 . . 1 . . . 2 1 . 1 Highest Loss Streak 28 | . 3 3 2 . 1 . . . 3 2 1 28 To Critical Strikes . | . . . . . . . . . . . . . Average Slot Usage (%) 95 | . 97 98 98 100 97 93 94 94 92 74 74 65 Engine 5 | . 12 10 1 7 3 . . . . . . . Core 4 | . . . 7 7 8 11 11 11 10 8 6 5 Leg 14 | . . 18 33 . . . . . . . . . Wheel 5 | . 27 3 . . . . . . . . . . Hover 5 | . . . 1 30 23 17 17 17 15 14 16 14 Device 10 | . 11 10 8 7 6 11 11 11 14 9 9 11 Storage 9 | . 14 11 9 7 6 5 5 5 5 4 4 3 Processor 11 | . . 18 14 7 6 5 5 5 9 9 8 6 Hackware 6 | . . . . 13 26 28 29 29 25 22 21 15 Protection 2 | . 1 3 3 1 . . . . . . 3 3 Energy Gun 3 | . 5 10 . . . . . . . . . . Energy Cannon 2 | . 7 . 5 . . . . . . . . . Ballistic Gun 6 | . 14 10 4 . . . . . . . . . Special Weapon 3 | . . . 6 15 7 5 5 5 4 3 . 1 Naked Turns 21 | . . . . . . . . . . . . 21 Heaviest Build 58 | 13 30 39 42 32 34 35 35 35 40 30 40 58 Greatest Support 58 | 32 32 20 53 32 36 36 36 36 36 36 56 58 Greatest Overweight (x) 3 | 3 2 2 3 . . . . . 1 . . 1 Average Overweight (x) . | . . 1 . . . . . . . . . . Largest Inventory Capacity 15 | 8 15 15 15 10 10 10 10 10 10 10 10 10 Average Capacity 12 | 7 12 15 13 10 10 10 10 10 10 10 10 8 Most Carried 15 | 4 14 15 15 10 10 10 10 10 10 9 10 10 Average Carried 12 | 1 9 14 13 9 9 9 10 10 9 7 9 7 Final Capacity 15 | 8 15 15 10 10 10 10 10 10 10 10 10 5 Final Carried 15 | 4 14 15 10 10 10 10 10 10 9 8 10 2 Class Distribution -------------------- 56% | Scavenger-Mutant 22% | Hacker-Mutant 18% | Mutant Dominant Class ---------------- Scavenger-Mutant | -10/Materials Scavenger-Mutant | -9/Materials Scavenger-Mutant | -8/Materials Hacker-Mutant | -7/Factory Hacker-Mutant | -6/Factory Hacker-Mutant | -5/Factory Hacker-Mutant | -5/Upper Caves Hacker-Mutant | -5/Upper Caves Hacker-Mutant | -4/Factory Hacker-Mutant | -3/Research Hacker-Mutant | -2/Research Hacker-Mutant | -1/Access Resources | -11 -10 -9 -8 -7 -6 -5 -5 -5 -4 -3 -2 -1 ----------- Run | Jun Mat Mat Mat Fac Fac Fac Upp Upp Fac Res Res Acc Matter Collected 2341 | 320 227 524 1037 50 65 . 50 . . . . 68 Remotely . | . . . . . . . . . . . . . Salvage Created 4000 | 147 790 1377 1656 30 . . . . . . . . Parts 258 | 9 55 88 100 6 . . . . . . . . Haulers Intercepted 1 | . 1 . . . . . . . . . . . Recyclers Shooed 7 | . 2 2 . . 3 . . . . . . . Parts Field Recycled . | . . . . . . . . . . . . . Retrieved Matter . | . . . . . . . . . . . . . Parts Self-Destructed . | . . . . . . . . . . . . . Prevented 2 | . . . . . . . . 2 . . . . Kills | -11 -10 -9 -8 -7 -6 -5 -5 -5 -4 -3 -2 -1 ------- Run | Jun Mat Mat Mat Fac Fac Fac Upp Upp Fac Res Res Acc Combat Hostiles Destroyed 70 | . 11 28 31 . . . . . . . . . Guns 41 | . 10 20 11 . . . . . . . . . Cannons 26 | . 1 5 20 . . . . . . . . . AOE 3 | . . 3 . . . . . . . . . . Classes Destroyed 12 | 3 5 2 2 . . . . . . . . . Worker 10 | 1 6 1 2 . . . . . . . . . Builder 3 | . 1 . 2 . . . . . . . . . Tunneler 3 | 2 1 . . . . . . . . . . . Hauler 1 | . 1 . . . . . . . . . . . Recycler 4 | 1 2 1 . . . . . . . . . . Operator 4 | . 1 . 2 1 . . . . . . . . Watcher 12 | . 3 5 4 . . . . . . . . . Swarmer 7 | . . 3 4 . . . . . . . . . Grunt 42 | . 11 15 16 . . . . . . . . . Brawler 1 | . . . 1 . . . . . . . . . Sentry 19 | . . 10 9 . . . . . . . . . Hunter 1 | . . . 1 . . . . . . . . . Best Kill Streak 7 | 3 6 5 7 1 . . . . . . . . Combat Bots Only 7 | . 3 4 7 . . . . . . . . . Max Kills in Single Turn 3 | 1 2 3 1 1 . . . . . . . . Gunslinging 1 | . 1 . . . . . . . . . . . Exploded 3 | . . 3 . . . . . . . . . . Melee . | . . . . . . . . . . . . . Uniques/NPCs Destroyed . | . . . . . . . . . . . . . Combat | -11 -10 -9 -8 -7 -6 -5 -5 -5 -4 -3 -2 -1 -------- Run | Jun Mat Mat Mat Fac Fac Fac Upp Upp Fac Res Res Acc Damage Taken 8748 | . 807 1481 1130 31 97 . . . 600 223 48 4331 Core 2285 | . 155 182 149 . 44 . . . 69 60 15 1611 Absorbed by Shields 211 | . . . . . . . . . . 79 18 114 Redirected to Shielding 104 | . . . . . . . . . . . 6 98 Regen/Repaired (Parts) 162 | . . . 45 . . 31 . . . . . 86 Core Remaining (%) 84 | 100 38 54 72 100 94 . . 100 94 95 98 . Volleys Fired 310 | 15 83 83 109 3 14 1 1 . . 1 . . Largest 2 | 2 2 2 2 2 1 1 1 . . 1 . . Hottest 109 | 40 85 88 109 40 20 20 20 . . 20 . . Shots Fired 586 | 30 154 164 215 6 14 1 1 . . 1 . . Gun 397 | 30 139 149 79 . . . . . . . . . Cannon 142 | . 15 14 113 . . . . . . . . . Launcher 1 | . . 1 . . . . . . . . . . Special 46 | . . . 23 6 14 1 1 . . 1 . . Kinetic 285 | 30 78 81 96 . . . . . . . . . Thermal 300 | . 76 82 119 6 14 1 1 . . 1 . . Explosive . | . . . . . . . . . . . . . Electromagnetic 1 | . . 1 . . . . . . . . . . Robot Hit Streak 21 | 5 9 21 19 6 3 . . . . . . . Robot Miss Streak 4 | 3 3 4 4 1 2 1 2 . . 3 . . Penetration Max . | . . . . . . . . . . . . . Secondary Targets 1 | . 1 . . . . . . . . . . . Max Gunslinging Chain 1 | . 1 . . . . . . . . . . . Shots Hit Robots 380 | 17 98 116 136 4 9 . . . . . . . Core Hits 190 | 6 37 62 79 3 2 . . . . . 1 . Critical Kills . | . . . . . . . . . . . . . Critical Parts Destroyed 1 | . . 1 . . . . . . . . . . Critical Strikes 3 | . 2 1 . . . . . . . . . . Burn 2 | . 2 . . . . . . . . . . . Destroy 1 | . . 1 . . . . . . . . . . Melee Attacks . | . . . . . . . . . . . . . Impact . | . . . . . . . . . . . . . Slashing . | . . . . . . . . . . . . . Piercing . | . . . . . . . . . . . . . Sneak Attacks . | . . . . . . . . . . . . . Combat Hostiles . | . . . . . . . . . . . . . Follow-up Attacks . | . . . . . . . . . . . . . Damage Inflicted 6972 | 160 1528 1967 2958 45 104 . . . 14 . 75 121 Guns 3702 | 160 1086 1530 926 . . . . . . . . . Cannons 2301 | . 175 245 1881 . . . . . . . . . Explosions 442 | . 267 175 . . . . . . . . . . Melee . | . . . . . . . . . . . . . Ramming 257 | . . 17 30 . . . . . 14 . 75 121 Kinetic 2592 | 160 476 784 1172 . . . . . . . . . Thermal 4067 | . 1052 1110 1756 45 104 . . . . . . . Explosive 20 | . . 20 . . . . . . . . . . Electromagnetic 36 | . . 36 . . . . . . . . . . Impact . | . . . . . . . . . . . . . Slashing . | . . . . . . . . . . . . . Piercing . | . . . . . . . . . . . . . Highest Corruption 30 | . . 1 . . 1 . . . . . 4 30 Average Corruption 2 | . . 1 . . 1 . . . . . 4 17 Corruption Purged . | . . . . . . . . . . . . . Corruption Blocked . | . . . . . . . . . . . . . Effects 27 | . . 9 . . 4 . . . . . . 14 Message Errors 8 | . . 2 . . . . . . . . . 6 Matter Fused 6 | . . 4 . . 1 . . . . . . 1 Heat Flow Errors 2 | . . . . . 1 . . . . . . 1 Energy Discharges 4 | . . 1 . . 1 . . . . . . 2 Data Loss (minor) 2 | . . 1 . . 1 . . . . . . . Alerts 1 | . . 1 . . . . . . . . . . Misdirections 4 | . . . . . . . . . . . . 4 Overload Shots . | . . . . . . . . . . . . . Overflow Damage 384 | . 221 39 36 . . . . . . . 11 77 Projectiles 36 | . . . 36 . . . . . . . . . Explosions 260 | . 221 39 . . . . . . . . . . Melee 88 | . . . . . . . . . . . 11 77 Knockbacks 7 | . . . 6 . . . . . . . . 1 Impact 1 | . . . . . . . . . . . . 1 Kinetic 6 | . . . 6 . . . . . . . . . Secondary . | . . . . . . . . . . . . . Self-Inflicted Damage 356 | . 163 89 . . . . . . 7 . 37 60 Shots 3 | . 2 1 . . . . . . . . . . Rammed 6 | . . . . . . . . . 1 . 3 2 Targets Rammed 18 | . . 6 6 . . . . . 1 . 3 2 Kicked 12 | . . 6 6 . . . . . . . . . Crushed . | . . . . . . . . . . . . . Highest Temperature 329 | . 329 256 82 . 118 . . . 3 . . 142 Average Temperature 56 | . 80 79 21 . 65 . . . 3 . . 58 Received Heat Transfer 1833 | . 336 675 576 15 6 . . . 90 18 . 117 Effects 2 | . . 2 . . . . . . . . . . Interference 2 | . . 2 . . . . . . . . . . Siege Activations . | . . . . . . . . . . . . . Robots Corrupted . | . . . . . . . . . . . . . Combat Hostiles . | . . . . . . . . . . . . . Parts Fried . | . . . . . . . . . . . . . Impact Corruptions 4 | . . . . . . . . . . . 1 3 Robots Melted . | . . . . . . . . . . . . . Combat Hostiles . | . . . . . . . . . . . . . Parts Melted 11 | . 3 4 3 1 . . . . . . . . Heat Transferred 7580 | . 2148 2250 2664 148 370 . . . . . . . Parts Sabotaged . | . . . . . . . . . . . . . Parts Stolen . | . . . . . . . . . . . . . Parts Stripped . | . . . . . . . . . . . . . Power Chain Reactions 1 | . . 1 . . . . . . . . . . Missiles Intercepted . | . . . . . . . . . . . . . Alert | -11 -10 -9 -8 -7 -6 -5 -5 -5 -4 -3 -2 -1 ------- Run | Jun Mat Mat Mat Fac Fac Fac Upp Upp Fac Res Res Acc Peak Influence 506 | 20 239 506 407 239 186 10 . . 70 190 216 249 Initial 129 | . 13 . 2 105 116 10 . . 2 18 106 129 Average 149 | 6 56 208 206 166 101 10 . . 4 48 140 135 Maximum Alert Level 2 | . 1 2 2 1 . . . . . . 1 1 Low Security (%) 65 | 100 93 51 38 68 100 100 . . 100 100 87 85 Level 1 31 | . 6 40 58 31 . . . . . . 12 14 Level 2 3 | . . 8 3 . . . . . . . . . Level 3 . | . . . . . . . . . . . . . Level 4 . | . . . . . . . . . . . . . Level 5 . | . . . . . . . . . . . . . High Security . | . . . . . . . . . . . . . Max Security . | . . . . . . . . . . . . . Squads Dispatched 19 | . 2 2 3 2 1 1 . . 3 2 1 2 Investigation 6 | . 1 2 1 . 1 1 . . . . . . Extermination 3 | . . . . . . . . . 1 . . 2 Reinforcement 10 | . 1 . 2 2 . . . . 2 2 1 . Assault . | . . . . . . . . . . . . . Garrison . | . . . . . . . . . . . . . Intercept . | . . . . . . . . . . . . . Searches Triggered . | . . . . . . . . . . . . . Construction Impeded 1 | . . . 1 . . . . . . . . . Haulers Reinforced . | . . . . . . . . . . . . . Active Scanning Responses . | . . . . . . . . . . . . . Cargo Convoy Interrupts . | . . . . . . . . . . . . . Stealth | -11 -10 -9 -8 -7 -6 -5 -5 -5 -4 -3 -2 -1 --------- Run | Jun Mat Mat Mat Fac Fac Fac Upp Upp Fac Res Res Acc Distress Signals 9 | . 1 2 3 2 . . . . . . . 1 Communications Jammed 33 | . . . . . . . . . 8 8 1 16 Distress Signals 25 | . . . . . . . . . . 8 1 16 Times Spotted 214 | . 24 43 49 10 3 . . . 16 15 7 47 Peak Tracking Total 21 | . 4 7 6 6 2 . . . 7 10 4 21 Tactical Retreats 27 | . 1 3 3 3 2 . . . 2 3 2 8 Traps | -11 -10 -9 -8 -7 -6 -5 -5 -5 -4 -3 -2 -1 ------- Run | Jun Mat Mat Mat Fac Fac Fac Upp Upp Fac Res Res Acc Traps Triggered 16 | . 2 3 2 . 3 1 . . 1 1 . 3 Indirectly . | . . . . . . . . . . . . . Trap Hack Attempts . | . . . . . . . . . . . . . Triggered . | . . . . . . . . . . . . . Disarmed . | . . . . . . . . . . . . . Reprogrammed . | . . . . . . . . . . . . . Reused . | . . . . . . . . . . . . . Traps Extracted . | . . . . . . . . . . . . . Installed . | . . . . . . . . . . . . . Triggered 3 | . . . . . . . 3 . . . . . Machines | -11 -10 -9 -8 -7 -6 -5 -5 -5 -4 -3 -2 -1 ---------- Run | Jun Mat Mat Mat Fac Fac Fac Upp Upp Fac Res Res Acc Machines Disabled 6 | . 3 3 . . . . . . . . . . Max in Single Turn 2 | . 2 2 . . . . . . . . . . Garrison Access 3 | . . . 1 . 1 1 . . . . . . Machines Repaired . | . . . . . . . . . . . . . Machines Sabotaged . | . . . . . . . . . . . . . Overloaded Fab Kills . | . . . . . . . . . . . . . Hacking | -11 -10 -9 -8 -7 -6 -5 -5 -5 -4 -3 -2 -1 --------- Run | Jun Mat Mat Mat Fac Fac Fac Upp Upp Fac Res Res Acc Machines Accessed 59 | . 8 12 13 4 7 6 . . 1 3 3 2 Terminals 42 | . 7 9 10 3 4 3 . . 1 3 2 . Fabricators 3 | . . . . . 1 1 . . . . 1 . Repair Stations 4 | . . 1 1 . . 1 . . . . . 1 Recycling Units 4 | . 1 . 1 . 1 . . . . . . 1 Scanalyzers 3 | . . 2 . 1 . . . . . . . . Garrison Access 3 | . . . 1 . 1 1 . . . . . . Total Hacks 151 | . 19 35 32 6 20 11 . . 6 12 4 6 Successful 66 | . 8 15 12 2 7 6 . . 3 7 2 4 Failed 84 | . 10 20 20 4 13 5 . . 3 5 2 2 Catastrophic 17 | . 1 4 5 1 1 3 . . 1 . 1 . Database Lockouts 1 | . 1 . . . . . . . . . . . Manual 66 | . 12 14 11 1 7 5 . . 3 11 2 . Terminals 115 | . 18 28 25 4 13 6 . . 6 12 3 . Fabricators 5 | . . . . . 2 2 . . . . 1 . Repair Stations 11 | . . 3 3 . . 2 . . . . . 3 Recycling Units 10 | . 1 . 2 . 4 . . . . . . 3 Scanalyzers 6 | . . 4 . 2 . . . . . . . . Garrison Access 4 | . . . 2 . 1 1 . . . . . . Terminal Hacks 43 | . 7 10 8 2 4 1 . . 3 7 1 . Part Schematic 2 | . . 1 1 . . . . . . . . . Prototype ID Bank 10 | . 4 3 3 . . . . . . . . . Open DSF 2 | . . . . 1 . 1 . . . . . . Level Access Points 2 | . . . . . . . . . 1 1 . . Branch Access Points 4 | . . . . 1 . . . . 1 1 1 . Terminal Index 1 | . . . . . . . . . . 1 . . Fabricator Index 1 | . . . . . 1 . . . . . . . Alert Level 8 | . . 3 2 . 1 . . . . 2 . . Unreport Threat 10 | . 2 3 2 . 1 . . . 1 1 . . Reinforcement Status 1 | . 1 . . . . . . . . . . . Recall Reinforcements 2 | . . . . . 1 . . . . 1 . . Fabricator Hacks 4 | . . . . . 1 2 . . . . 1 . Network Status 1 | . . . . . . . . . . . 1 . Load Schematic 1 | . . . . . . 1 . . . . . . Build 2 | . . . . . 1 1 . . . . . . Repair Station Hacks 7 | . . 1 2 . . 2 . . . . . 2 Scan Component 4 | . . 1 1 . . 1 . . . . . 1 Repair 3 | . . . 1 . . 1 . . . . . 1 Recycling Unit Hacks 5 | . 1 . 1 . 1 . . . . . . 2 Process 1 | . . . . . . . . . . . . 1 Report Inventory 1 | . 1 . . . . . . . . . . . Retrieve Matter 1 | . . . . . . . . . . . . 1 Retrieve Components 2 | . . . 1 . 1 . . . . . . . Scanalyzer 4 | . . 4 . . . . . . . . . . Insert Component 2 | . . 2 . . . . . . . . . . Analyze 2 | . . 2 . . . . . . . . . . Garrison Access Hacks 3 | . . . 1 . 1 1 . . . . . . Seal Access 3 | . . . 1 . 1 1 . . . . . . Unauthorized Hacks . | . . . . . . . . . . . . . Terminals . | . . . . . . . . . . . . . Fabricators . | . . . . . . . . . . . . . Repair Stations . | . . . . . . . . . . . . . Recycling Units . | . . . . . . . . . . . . . Scanalyzers . | . . . . . . . . . . . . . Garrison Access . | . . . . . . . . . . . . . Data Cores Recovered 1 | . . . 1 . . . . . . . . . Used . | . . . . . . . . . . . . . Hacking Detections 48 | . 8 11 11 2 6 3 . . 1 3 2 1 Full Trace Events 3 | . 1 . 1 . . 1 . . . . . . Feedback Events . | . . . . . . . . . . . . . Feedback Blocked . | . . . . . . . . . . . . . Robot Schematics Acquired . | . . . . . . . . . . . . . Robots Built 2 | . . . . . 2 . . . . . . . Authchips . | . . . . . . . . . . . . . Time 67 | . . . . . 67 . . . . . . . Total Robot Build Rating 8 | . . . . . 8 . . . . . . . Part Schematics Acquired 4 | . . 3 1 . . . . . . . . . Parts Built 1 | . . . . . . 1 . . . . . . Authchips . | . . . . . . . . . . . . . Time 24 | . . . . . . 24 . . . . . . Total Part Build Rating 3 | . . . . . . 3 . . . . . . Parts Repaired 3 | . . . 1 . . 1 . . . . . 1 Time 153 | . . . 60 . . 70 . . . . . 23 Parts Recycled . | . . . . . . . . . . . . . Recycled Matter 85 | . . . . . . . . . . . . 85 Retrieved Matter 85 | . . . . . . . . . . . . 85 Retrieved Components 11 | . . . 10 . 1 . . . . . . . Parts Scanalyzed 2 | . . 2 . . . . . . . . . . Part Schematics Acquired 2 | . . 2 . . . . . . . . . . Parts Damaged . | . . . . . . . . . . . . . Bothacking | -11 -10 -9 -8 -7 -6 -5 -5 -5 -4 -3 -2 -1 ------------ Run | Jun Mat Mat Mat Fac Fac Fac Upp Upp Fac Res Res Acc Used RIF Installer . | . . . . . . . . . . . . . Robots Hacked . | . . . . . . . . . . . . . Non-combat . | . . . . . . . . . . . . . Combat . | . . . . . . . . . . . . . Robot Hacks Applied . | . . . . . . . . . . . . . Relay Couplers Released . | . . . . . . . . . . . . . Fabnet Peak Effective % . | . . . . . . . . . . . . . Robots Rewired . | . . . . . . . . . . . . . Allies Hacked . | . . . . . . . . . . . . . Hacks Repelled . | . . . . . . . . . . . . . Allies | -11 -10 -9 -8 -7 -6 -5 -5 -5 -4 -3 -2 -1 -------- Run | Jun Mat Mat Mat Fac Fac Fac Upp Upp Fac Res Res Acc Total Allies 2 | . . . . . 2 . . . . . . . Largest Group 2 | . . . . . 2 . . . . . . . Highest-Rated Group 64 | . . . . . 64 . . . . . . . Highest-Rated Ally 32 | . . . . . 32 . . . . . . . Total Orders . | . . . . . . . . . . . . . Ally Attacks 3 | . . . . . 3 . . . . . . . Total Damage 133 | . . . . . 133 . . . . . . . Kills 1 | . . . . . 1 . . . . . . . Allies Corrupted . | . . . . . . . . . . . . . Allies Melted 1 | . . . . . 1 . . . . . . . Intel | -11 -10 -9 -8 -7 -6 -5 -5 -5 -4 -3 -2 -1 ------- Run | Jun Mat Mat Mat Fac Fac Fac Upp Upp Fac Res Res Acc Robot Analysis Total . | . . . . . . . . . . . . . Derelict Logs Recovered . | . . . . . . . . . . . . . Drone Launches . | . . . . . . . . . . . . . Drone Recoveries . | . . . . . . . . . . . . . Exploration | -11 -10 -9 -8 -7 -6 -5 -5 -5 -4 -3 -2 -1 ------------- Run | Jun Mat Mat Mat Fac Fac Fac Upp Upp Fac Res Res Acc Turns Passed 11201 | 109 1615 3167 3224 254 658 300 157 94 707 186 133 597 Spaces Moved 9963 | 51 1341 1516 2199 563 1280 367 324 208 508 366 259 981 Core 99 | 7 . . . . . . . . . . . 92 Treads . | . . . . . . . . . . . . . Legs 3087 | . . 1168 1919 . . . . . . . . . Wheels 1733 | 44 1341 348 . . . . . . . . . . Hover 5044 | . . . 280 563 1280 367 324 208 508 366 259 889 Flight . | . . . . . . . . . . . . . Fastest Speed 38 | 50 90 95 38 38 38 45 45 45 45 45 43 43 Average Speed 85 | 102 95 168 111 38 40 45 45 45 55 45 43 47 Slowest Speed 250 | 200 110 190 250 38 45 45 45 45 101 45 43 115 Overloaded Moves . | . . . . . . . . . . . . . Propulsion Burnouts . | . . . . . . . . . . . . . Robots Hopped . | . . . . . . . . . . . . . Cave-ins Triggered . | . . . . . . . . . . . . . Exploration Rate (%) 36 | 5 99 98 76 18 28 11 55 17 9 17 11 27 Regions Visited 12 Branch Regions 2 Pre-discovered Areas . | . . . . . . . . . . . . . Known Exits Taken 11 | . 1 1 1 1 1 1 1 1 1 1 1 . Unknown Exits Taken 1 | 1 . . . . . . . . . . . . Scrap Searched 2 | . . . . . . . 2 . . . . . Spaces Dug . | . . . . . . . . . . . . . Terrain Destroyed 118 | . 26 57 35 . . . . . . . . . Melee . | . . . . . . . . . . . . . Projectile 35 | . . . 35 . . . . . . . . . AOE 83 | . 26 57 . . . . . . . . . . Terrain Rammed . | . . . . . . . . . . . . . Walls Destroyed . | . . . . . . . . . . . . . Machines Disabled . | . . . . . . . . . . . . . Actions | -11 -10 -9 -8 -7 -6 -5 -5 -5 -4 -3 -2 -1 --------- Run | Jun Mat Mat Mat Fac Fac Fac Upp Upp Fac Res Res Acc Total 12097 | 77 1530 1980 2780 593 1396 498 332 207 930 384 279 1111 Wait 1371 | 2 68 281 310 9 58 122 8 . 413 . . 100 Move 9952 | 50 1340 1515 2198 562 1279 366 323 207 507 365 259 981 Hop . | . . . . . . . . . . . . . Pick Up 120 | 4 18 25 33 7 12 4 . . 2 2 7 6 Fast Attach 63 | 6 6 14 23 1 2 2 . . 1 . 3 5 Attach 56 | . 4 12 14 3 4 2 . . 2 3 1 11 Detach 17 | . 1 8 7 . . . . . . . . 1 Swap 47 | . 4 6 26 1 1 . . . 3 . 3 3 Drop 118 | . 6 30 54 7 13 1 . . 1 . 4 2 Fire 310 | 15 83 83 109 3 14 1 1 . . 1 . . Melee . | . . . . . . . . . . . . . Ram 5 | . . . . . . . . . 1 . 2 2 Kick 12 | . . 6 6 . . . . . . . . . Crush . | . . . . . . . . . . . . . Escape Stasis 26 | . . . . . 13 . . . . 13 . . Rewire . | . . . . . . . . . . . . . Trap . | . . . . . . . . . . . . . Miscellaneous . | . . . . . . . . . . . . . Route ------- -11/Junkyard -10/Materials (discovered 4 exits: *Mat x3 / [*Min]) -9/Materials (discovered 5 exits: *Mat x3 / *Min x2) -8/Materials (discovered 3 exits: *Fac x3) -7/Factory (discovered 5 exits: *Fac / Sto x2 / *Low x2) -6/Factory (discovered 2 exits: *Fac / *Low) -5/Factory (discovered 2 exits: *Upp / DSF) -5/Upper Caves -5/Upper Caves -4/Factory (discovered 9 exits: *Res x4 / Upp x2 / Ext x2 / Arm) -3/Research (discovered 5 exits: *Res x3 / Qua x2) -2/Research (discovered 3 exits: *Acc / Tes x2) -1/Access History --------- Turn | Location | Event 16 | -11/Junkyard | Discovered new exit (range 16) 110 | -11/Junkyard | Entered Materials 236 | -10/Materials | Discovered new exit (range 3) 276 | -10/Materials | Discovered new exit (range 10) 313 | -10/Materials | Build established: Mutant 394 | -10/Materials | Lost 3 parts (1p1n1w) 538 | -10/Materials | Discovered new exit (range 11) 607 | -10/Materials | Core integrity fell below 50% 869 | -10/Materials | Discovered new exit (range 4) 898 | -10/Materials | Build established: Scavenger-Mutant 1661 | -10/Materials | Central database locked down 1724 | -10/Materials | Identified exit to Materials 1725 | -10/Materials | Entered another Materials area 1725 | -9/Materials | Evolved 2 slots: Utility x2 1940 | -9/Materials | Lost 3 parts (1n2w) 2157 | -9/Materials | Discovered new exit (range 16) 2397 | -9/Materials | Identified exit to Mines 2684 | -9/Materials | Discovered exit to Mines (range 13) 2933 | -9/Materials | Discovered new exit (range 13) 2956 | -9/Materials | Identified exit to Materials 3158 | -9/Materials | Discovered exit to Materials (range 13) 3807 | -9/Materials | Discovered exit to Materials (range 3) 4201 | -9/Materials | Build established: Mutant 4892 | -9/Materials | Entered another Materials area 4892 | -8/Materials | Evolved 2 slots: Propulsion x2 5205 | -8/Materials | Build established: Scavenger-Mutant 5427 | -8/Materials | Discovered new exit (range 15) 5696 | -8/Materials | Repaired Enh. Autogun 5896 | -8/Materials | Discovered new exit (range 10) 5958 | -8/Materials | Identified exit to Factory 6096 | -8/Materials | Discovered exit to Factory (range 4) 7734 | -8/Materials | Destroyed 7 combat bots 8116 | -8/Materials | Entered Factory 8116 | -7/Factory | Evolved 2 slots: Power x1, Utility x1 8254 | -7/Factory | Identified exit to Storage 8254 | -7/Factory | Identified exit to Lower Caves 8362 | -7/Factory | Discovered new exit (range 15) 8367 | -7/Factory | Identified exit to Factory 8370 | -7/Factory | Entered another Factory area 8370 | -6/Factory | Evolved 2 slots: Utility x2 8451 | -6/Factory | Fabricated Y-54 Guardian? 8472 | -6/Factory | Build established: Hacker-Mutant 8476 | -6/Factory | Spotted B-75 Beast 8597 | -6/Factory | Discovered new exit (range 8) 8602 | -6/Factory | Identified exit to Lower Caves 9020 | -6/Factory | Discovered new exit (range 15) 9027 | -6/Factory | Identified exit to Factory 9028 | -6/Factory | Entered another Factory area 9028 | -5/Factory | Evolved 2 slots: Utility x2 9037 | -5/Factory | Identified exit to DSF 9088 | -5/Factory | Fabricated Hacking Suite (x1) 9265 | -5/Factory | Repaired Cld. Airjet 9274 | -5/Factory | Discovered new exit (range 15) 9282 | -5/Factory | Identified exit to Upper Caves 9328 | -5/Factory | Entered Upper Caves 9482 | -5/Upper Caves | Discovered new exit (range 8) 9484 | -5/Upper Caves | Identified exit to Upper Caves 9485 | -5/Upper Caves | Entered another Upper Caves area 9574 | -5/Upper Caves | Discovered new exit (range 11) 9578 | -5/Upper Caves | Identified exit to Factory 9579 | -5/Upper Caves | Entered Factory 9579 | -4/Factory | Evolved 2 slots: Utility x2 10248 | -4/Factory | Identified exit to Research 10248 | -4/Factory | Identified exit to Upper Caves 10248 | -4/Factory | Identified exit to Extension 10248 | -4/Factory | Identified exit to Armory 10286 | -4/Factory | Entered Research 10286 | -3/Research | Evolved 2 slots: Utility x2 10296 | -3/Research | Identified exit to Quarantine 10296 | -3/Research | Identified exit to Research 10311 | -3/Research | Lost 3 parts (3u) 10472 | -3/Research | Entered another Research area 10472 | -2/Research | Evolved 2 slots: Propulsion x2 10588 | -2/Research | Identified exit to Testing 10602 | -2/Research | Discovered new exit (range 6) 10604 | -2/Research | Identified exit to Access 10605 | -2/Research | Entered Access 10605 | -1/Access | Evolved 2 slots: Power x1, Utility x1 10658 | -1/Access | Repaired Cld. Airjet 10952 | -1/Access | Spotted B-99 Colossus 10952 | -1/Access | Spotted B-99 Colossus 10988 | -1/Access | Lost 3 parts (1p1u1w) 11027 | -1/Access | System corruption reached 10% 11043 | -1/Access | Spotted B-99 Colossus 11123 | -1/Access | Core integrity fell below 50% 11159 | -1/Access | Core integrity fell below 20% 11202 | -1/Access | System corruption reached 30% 11202 | -1/Access | Destroyed by S-43 Plague with Heavy Machine Gun Last Messages --------------- 11134_ Cmb. Antigrav System destroyed. 11135_ K-01 Serf collects debris. 11138_ P-80 Master resets U-05 Engineer, system corruption cleaned. 11139_ Slug penetrates Wall. 11140_ EIR4IKTPI THTZAUKE6DUZN#VI< 11140_ K-01 Serf collects debris. 11142_ Enh. Optical Array destroyed. 11143_ K-01 Serf collects debris. 11144_ Penetrated by Slug. 11144_ Med. Treads destroyed. 11145_ Gyrokinetic Inverter destroyed. 11154_ Quantum Reactor destroyed. 11155_ System corrupted: Heat flow error (+187). 11160_ P-80 Master resets P-80 Master, system corruption cleaned. 11163_ P-80 Master resets A-15 Conveyor, system corruption cleaned. 11166_ Door malfunctions. 11170_ System corrupted: Energy discharge (-29). 11181_ Gyrokinetic Inverter destroyed. 11185_ System corrupted: Energy discharge (-40). 11201_ JSDVSLQSEBM696SSAAGUAZ& Map ----- +----------------------------------------------------+ | #??????????????????????????????????????? | | #??????????????????????????????????????? | | #??????????????????????????????????????? | | #??????????????????????????????????????? | | #??????????????????????????????????????? | | ##########+####??? ???????????????????? | | #?? ??#######?????????? | | #? ??# ?????????? | | # ????# ???? #???? | | " / ?????# "? #???? | | """ # ??????# """ #???? | | """ #???????# """ ! #???? | | " #???????# " #???? | | ####### * #???????# #???? | | ??????# #???????# ????? | | ??????# +???????# ??????? | | ??????# ########???????# ????????? | | ??????# #??????????????# ss ??????????? | | ??????# #??????????????# s ????????????? | | ??????# #################s###########???? | | pp s #???? | | pp #???? | | #???? | | #???? | | #???? | | @ #???? | | #???? | | ? #################+##################???? | | ? ???????????????????????????????????????? | | ?? ????????????????????????????????????????? | | ?? ?????????????????????????????????????????? | | ??????????????????????????????????????????????? | | ??????????????????????????????????????????????? | | ??????????????????????????????????????????????? | | ??????????????????????????????????????????????? | | ??????????????????????????????????????????????? | | ??????????????????????????????????????????????? | | ??????????????????????????????????????????????? | | ??????????????????????????????????????????????? | | ??????????????????????????????????????????????? | | ??????????????????????????????????????????????? | | ??????????????????????????????????????????????? | | ??????????????????????????????????????????????? | | ??????????????????????????????????????????????? | | ??????????????????????????????????????????????? | | ??????????????????????????????????????????????? | | ??????????????????????????????????????????????? | | ??????????????????????????????????????????????? | | ??????????????????????????????????????????????? | | ??????????????????????????????????????????????? | +----------------------------------------------------+ Best States ------------- Heat Dissipation 52 Energy Generation 55 Energy Capacity 490 Matter Stores 300 Matter Capacity 300 Sight Range 22 Robot Scan Range 16 Terrain Scan Density 10 ECM Strength 1 Jamming Range 12 Cloak Strength 4 Armor Coverage 225 Resistance: TH 30 Core Shielding 30 Evasion (%) 57 Recoil Reduction 1 Offensive Hacking 40 Defensive Hacking 24 Item Schematics ----------------- Hacking Suite | -9/Materials | Scanalyzed Imp. Heat Sink | -9/Materials | Scanalyzed Imp. Targeting Computer | -9/Materials | Hacked System Shield | -8/Materials | Hacked Robot Schematics ------------------ None Fabricated ------------ Y-54 Guardian | x2 | -6/Factory | Preloaded Hacking Suite | x1 | -5/Factory Alien Tech Used ----------------- None Achievements -------------- GoHome() No Signal Challenges ------------ None Game ------ Seed WeaponBoreRefractor Manual? 0 Play Time 03:09:31 Cumulative 70.1 hours Start 2023.08.15 @ 12:47:14 End 2023.08.15 @ 16:22:09 Sessions 1 Manual Loads 0 Difficulty Rogue Special Mode None Game No. 47 Rogue 47 Adventurer 0 Explorer 0 Win Type - Total 0 Types 0/0/0/0/0/0/0/0/0 Lore% 33 Gallery% 37 Achievement% 32 Wizard Run 0 Options --------- ASCII 0 Keyboard 1 Movement Vi Keybinds 0 Fullscreen 2 Font 18/Terminus Map View 76x50 Tactical HUD 1 Map Filters NONE Filters NONE Steam 1 RUN: 075f50ae-94e7-4e26-b076-4a7f976a3ce6